[Event "Titled Tuesday Blitz November 22 Early 2022"]
[White "Chigaev, Maksim"]
[Black "Vaibhav Jayant Raut"]
[WhiteFideId "4108116"]
[BlackFideId "5089034"]
[WhiteElo "2541"]
[BlackElo "2147"]
[Result "1-0"]
[Round "05"]
[TimeControl "180+1"]
[Date "2022.11.22"]
[WhiteClock "0:00:06"]
[BlackClock "0:00:02"]

1. Nf3 {[%clk 0:03:00]}  Nf6 {[%clk 0:03:00]} 2. c4 {[%clk 0:03:01]}  g6 {[%clk 0:02:58]} 3. Nc3 {[%clk 0:03:02]}  Bg7 {[%clk 0:02:58]} 4. e4 {[%clk 0:03:02]}  d6 {[%clk 0:02:59]} 5. d4 {[%clk 0:03:02]}  O-O {[%clk 0:02:59]} 6. Be2 {[%clk 0:03:03]}  Na6 {[%clk 0:02:59]} 7. O-O {[%clk 0:03:03]}  e5 {[%clk 0:02:59]} 8. Be3 {[%clk 0:02:59]}  Ng4 {[%clk 0:02:56]} 9. Bg5 {[%clk 0:02:59]}  Qe8 {[%clk 0:02:54]} 10. Rc1 {[%clk 0:02:55]}  Bd7 {[%clk 0:02:42]} 11. Re1 {[%clk 0:02:44]}  Kh8 {[%clk 0:02:12]} 12. h3 {[%clk 0:02:39]}  f6 {[%clk 0:02:10]} 13. Bd2 {[%clk 0:02:18]}  Nh6 {[%clk 0:02:08]} 14. a3 {[%clk 0:02:05]}  Nf7 {[%clk 0:01:49]} 15. b4 {[%clk 0:02:00]}  c6 {[%clk 0:01:45]} 16. Bf1 {[%clk 0:01:51]}  Nc7 {[%clk 0:01:45]} 17. Be3 {[%clk 0:01:37]}  Rd8 {[%clk 0:01:42]} 18. d5 {[%clk 0:01:29]}  a6 {[%clk 0:01:35]} 19. Bb6 {[%clk 0:01:27]}  Rc8 {[%clk 0:01:34]} 20. c5 {[%clk 0:01:27]}  dxc5 {[%clk 0:01:31]} 21. bxc5 {[%clk 0:01:21]}  Nb5 {[%clk 0:01:31]} 22. a4 {[%clk 0:01:07]}  Nxc3 {[%clk 0:01:27]} 23. Rxc3 {[%clk 0:01:08]}  f5 {[%clk 0:01:21]} 24. d6 {[%clk 0:01:01]}  Bf6 {[%clk 0:01:02]} 25. Rb3 {[%clk 0:00:51]}  Be6 {[%clk 0:00:59]} 26. Rb4 {[%clk 0:00:47]}  Qd7 {[%clk 0:00:58]} 27. Bc7 {[%clk 0:00:39]}  Rxc7 {[%clk 0:00:54]} 28. dxc7 {[%clk 0:00:39]}  Qxc7 {[%clk 0:00:55]} 29. Bc4 {[%clk 0:00:39]}  a5 {[%clk 0:00:48]} 30. Rxb7 {[%clk 0:00:39]}  Qxb7 {[%clk 0:00:43]} 31. Bxe6 {[%clk 0:00:40]}  f4 {[%clk 0:00:27]} 32. Qb1 {[%clk 0:00:36]}  Qe7 {[%clk 0:00:26]} 33. Bxf7 {[%clk 0:00:31]}  Rxf7 {[%clk 0:00:24]} 34. Qb6 {[%clk 0:00:32]}  Qc7 {[%clk 0:00:18]} 35. Nd2 {[%clk 0:00:32]}  Kg7 {[%clk 0:00:14]} 36. Nc4 {[%clk 0:00:31]}  f3 {[%clk 0:00:14]} 37. Qxc7 {[%clk 0:00:25]}  Rxc7 {[%clk 0:00:14]} 38. gxf3 {[%clk 0:00:25]}  Be7 {[%clk 0:00:11]} 39. Nxe5 {[%clk 0:00:23]}  Bxc5 {[%clk 0:00:10]} 40. Rc1 {[%clk 0:00:24]}  Bd6 {[%clk 0:00:09]} 41. Nxc6 {[%clk 0:00:21]}  Kf8 {[%clk 0:00:08]} 42. Rc4 {[%clk 0:00:21]}  Ke8 {[%clk 0:00:08]} 43. Nxa5 {[%clk 0:00:21]}  Ra7 {[%clk 0:00:08]} 44. Nb3 {[%clk 0:00:19]}  Rb7 {[%clk 0:00:08]} 45. Nd4 {[%clk 0:00:19]}  Rb2 {[%clk 0:00:08]} 46. Nb5 {[%clk 0:00:18]}  Be7 {[%clk 0:00:08]} 47. e5 {[%clk 0:00:15]}  Ra2 {[%clk 0:00:07]} 48. Nd6+ {[%clk 0:00:13]}  Kd7 {[%clk 0:00:07]} 49. Ne4 {[%clk 0:00:13]}  Bh4 {[%clk 0:00:07]} 50. Nc5+ {[%clk 0:00:12]}  Kc6 {[%clk 0:00:06]} 51. Rxh4 {[%clk 0:00:13]}  Kxc5 {[%clk 0:00:07]} 52. Rxh7 {[%clk 0:00:13]}  Rxa4 {[%clk 0:00:06]} 53. e6 {[%clk 0:00:13]}  Kd6 {[%clk 0:00:05]} 54. e7 {[%clk 0:00:13]}  Ra1+ {[%clk 0:00:05]} 55. Kg2 {[%clk 0:00:12]}  Re1 {[%clk 0:00:06]} 56. Kg3 {[%clk 0:00:11]}  Kd7 {[%clk 0:00:07]} 57. Kg4 {[%clk 0:00:11]}  Re2 {[%clk 0:00:05]} 58. Kg3 {[%clk 0:00:08]}  Re1 {[%clk 0:00:05]} 59. f4 {[%clk 0:00:07]}  Ke8 {[%clk 0:00:05]} 60. Rg7 {[%clk 0:00:07]}  Kd7 {[%clk 0:00:05]} 61. h4 {[%clk 0:00:07]}  Ke8 {[%clk 0:00:04]} 62. Kg2 {[%clk 0:00:07]}  Re4 {[%clk 0:00:03]} 63. Kf3 {[%clk 0:00:07]}  Re6 {[%clk 0:00:03]} 64. f5 {[%clk 0:00:05]}  gxf5 {[%clk 0:00:03]} 65. Kf4 {[%clk 0:00:06]}  Rh6 {[%clk 0:00:04]} 66. Kg5 {[%clk 0:00:06]}  Rc6 {[%clk 0:00:02]} 67. h5 {[%clk 0:00:06]}  Rc2 {[%clk 0:00:03]} 68. h6 {[%clk 0:00:06]}  Rxf2 {[%clk 0:00:03]} 69. h7 {[%clk 0:00:06]}  Rh2 {[%clk 0:00:04]} 70. Rg8+ {[%clk 0:00:05]}  Kxe7 {[%clk 0:00:02]} 71. h8=Q {[%clk 0:00:06]} 1-0


[Site "https://www.chess.com"]

[Event "Titled Tuesday Blitz November 22 Early 2022"]
[White "Chuemsakul, Sarocha"]
[Black "Devaev, Alexander"]
[WhiteFideId "6203710"]
[BlackFideId "4169395"]
[WhiteElo "1686"]
[BlackElo "2225"]
[Result "0-1"]
[Round "05"]
[TimeControl "180+1"]
[Date "2022.11.23"]
[WhiteClock "0:00:02"]
[BlackClock "0:00:21"]

1. d4 {[%clk 0:02:59]}  Nf6 {[%clk 0:02:58]} 2. c4 {[%clk 0:02:59]}  e6 {[%clk 0:02:59]} 3. g3 {[%clk 0:02:59]}  c5 {[%clk 0:02:57]} 4. Nf3 {[%clk 0:02:59]}  cxd4 {[%clk 0:02:57]} 5. Nxd4 {[%clk 0:02:59]}  Nc6 {[%clk 0:02:58]} 6. Bg2 {[%clk 0:02:55]}  Be7 {[%clk 0:02:58]} 7. O-O {[%clk 0:02:53]}  O-O {[%clk 0:02:59]} 8. Nc3 {[%clk 0:02:52]}  Ne5 {[%clk 0:02:59]} 9. b3 {[%clk 0:02:49]}  d6 {[%clk 0:02:59]} 10. e4 {[%clk 0:02:39]}  a6 {[%clk 0:02:58]} 11. Bb2 {[%clk 0:02:36]}  Qc7 {[%clk 0:02:58]} 12. h3 {[%clk 0:02:30]}  Rb8 {[%clk 0:02:58]} 13. f4 {[%clk 0:02:18]}  Ng6 {[%clk 0:02:58]} 14. Rc1 {[%clk 0:02:11]}  Re8 {[%clk 0:02:58]} 15. f5 {[%clk 0:01:23]}  Ne5 {[%clk 0:02:57]} 16. g4 {[%clk 0:01:15]}  h6 {[%clk 0:02:55]} 17. Kh1 {[%clk 0:01:00]}  b6 {[%clk 0:02:45]} 18. Nf3 {[%clk 0:00:35]}  Bb7 {[%clk 0:02:13]} 19. Qe2 {[%clk 0:00:28]}  Bf8 {[%clk 0:02:10]} 20. Rfd1 {[%clk 0:00:26]}  Nfd7 {[%clk 0:02:10]} 21. Qf2 {[%clk 0:00:22]}  Ba8 {[%clk 0:02:06]} 22. Re1 {[%clk 0:00:20]}  Nd3 {[%clk 0:02:05]} 23. Qd2 {[%clk 0:00:20]}  Nxc1 {[%clk 0:02:01]} 24. Rxc1 {[%clk 0:00:20]}  Ne5 {[%clk 0:01:57]} 25. g5 {[%clk 0:00:19]}  hxg5 {[%clk 0:01:49]} 26. Qxg5 {[%clk 0:00:18]}  Nd3 {[%clk 0:01:39]} 27. Rc2 {[%clk 0:00:19]}  Nxb2 {[%clk 0:01:25]} 28. Rxb2 {[%clk 0:00:19]}  Be7 {[%clk 0:01:24]} 29. Qg3 {[%clk 0:00:17]}  Bf6 {[%clk 0:01:24]} 30. Rc2 {[%clk 0:00:17]}  exf5 {[%clk 0:01:22]} 31. exf5 {[%clk 0:00:16]}  b5 {[%clk 0:01:15]} 32. Ne2 {[%clk 0:00:12]}  Re3 {[%clk 0:01:00]} 33. Qf4 {[%clk 0:00:10]}  Rbe8 {[%clk 0:01:00]} 34. Ng3 {[%clk 0:00:09]}  Bxf3 {[%clk 0:00:57]} 35. Bxf3 {[%clk 0:00:09]}  Re1+ {[%clk 0:00:57]} 36. Kh2 {[%clk 0:00:09]}  Be5 {[%clk 0:00:54]} 37. Qg4 {[%clk 0:00:09]}  Qe7 {[%clk 0:00:46]} 38. Rg2 {[%clk 0:00:09]}  bxc4 {[%clk 0:00:45]} 39. bxc4 {[%clk 0:00:09]}  Qf6 {[%clk 0:00:45]} 40. h4 {[%clk 0:00:05]}  Rb8 {[%clk 0:00:41]} 41. Kh3 {[%clk 0:00:06]}  Rbb1 {[%clk 0:00:40]} 42. Rh2 {[%clk 0:00:04]}  Bxg3 {[%clk 0:00:37]} 43. Qxg3 {[%clk 0:00:03]}  Qxf5+ {[%clk 0:00:34]} 44. Bg4 {[%clk 0:00:03]}  Qf1+ {[%clk 0:00:31]} 45. Rg2 {[%clk 0:00:03]}  Rb2 {[%clk 0:00:23]} 46. Bf3 {[%clk 0:00:01]}  Rxg2 {[%clk 0:00:20]} 47. Bxg2 {[%clk 0:00:01]}  Qf5+ {[%clk 0:00:20]} 48. Kh2 {[%clk 0:00:02]}  Qe5 {[%clk 0:00:21]} 0-1


[Site "https://www.chess.com"]

[Event "Titled Tuesday Blitz November 22 Early 2022"]
[White "Darini, Pouria"]
[Black "Xu, Yi"]
[WhiteFideId "12502200"]
[BlackFideId "8605564"]
[WhiteElo "2483"]
[BlackElo "2471"]
[Result "0-1"]
[Round "05"]
[TimeControl "180+1"]
[Date "2022.11.23"]
[WhiteClock "0:00:06"]
[BlackClock "0:00:36"]

1. e4 {[%clk 0:02:51]}  c5 {[%clk 0:02:58]} 2. Nf3 {[%clk 0:02:52]}  d6 {[%clk 0:02:57]} 3. Nc3 {[%clk 0:02:52]}  Nf6 {[%clk 0:02:56]} 4. Bb5+ {[%clk 0:02:53]}  Nbd7 {[%clk 0:02:49]} 5. a4 {[%clk 0:02:54]}  a6 {[%clk 0:02:46]} 6. Bc4 {[%clk 0:02:53]}  e6 {[%clk 0:02:41]} 7. O-O {[%clk 0:02:54]}  Be7 {[%clk 0:02:41]} 8. Re1 {[%clk 0:02:54]}  Ne5 {[%clk 0:02:38]} 9. Nxe5 {[%clk 0:02:51]}  dxe5 {[%clk 0:02:38]} 10. a5 {[%clk 0:02:52]}  O-O {[%clk 0:02:37]} 11. b3 {[%clk 0:02:51]}  Nd7 {[%clk 0:02:31]} 12. Bf1 {[%clk 0:02:44]}  Nb8 {[%clk 0:02:30]} 13. Bb2 {[%clk 0:02:13]}  Nc6 {[%clk 0:02:28]} 14. Ne2 {[%clk 0:02:14]}  Bd6 {[%clk 0:02:23]} 15. Bc3 {[%clk 0:02:13]}  Bc7 {[%clk 0:02:23]} 16. Ng3 {[%clk 0:02:01]}  Bxa5 {[%clk 0:02:21]} 17. Bxa5 {[%clk 0:02:01]}  Nxa5 {[%clk 0:02:22]} 18. Qg4 {[%clk 0:01:55]}  Nc6 {[%clk 0:02:19]} 19. h4 {[%clk 0:01:54]}  Qxd2 {[%clk 0:02:14]} 20. Re3 {[%clk 0:01:51]}  Qd8 {[%clk 0:01:57]} 21. Nh5 {[%clk 0:01:49]}  g6 {[%clk 0:01:56]} 22. Ng3 {[%clk 0:01:42]}  f5 {[%clk 0:01:45]} 23. exf5 {[%clk 0:01:42]}  exf5 {[%clk 0:01:45]} 24. Qc4+ {[%clk 0:01:43]}  Kh8 {[%clk 0:01:40]} 25. Qxc5 {[%clk 0:01:41]}  Be6 {[%clk 0:01:38]} 26. h5 {[%clk 0:01:28]}  Qf6 {[%clk 0:01:34]} 27. hxg6 {[%clk 0:01:27]}  hxg6 {[%clk 0:01:34]} 28. Rae1 {[%clk 0:01:18]}  Kg7 {[%clk 0:01:31]} 29. Bc4 {[%clk 0:00:54]}  Bxc4 {[%clk 0:01:22]} 30. Qxc4 {[%clk 0:00:55]}  Rad8 {[%clk 0:01:21]} 31. Rd3 {[%clk 0:00:41]}  e4 {[%clk 0:01:14]} 32. Rxd8 {[%clk 0:00:39]}  Rxd8 {[%clk 0:01:14]} 33. Ne2 {[%clk 0:00:23]}  Qe5 {[%clk 0:01:02]} 34. g3 {[%clk 0:00:14]}  g5 {[%clk 0:00:55]} 35. Kg2 {[%clk 0:00:12]}  f4 {[%clk 0:00:52]} 36. gxf4 {[%clk 0:00:08]}  gxf4 {[%clk 0:00:53]} 37. Rg1 {[%clk 0:00:08]}  Qg5+ {[%clk 0:00:36]} 38. Kh2 {[%clk 0:00:06]}  Rh8# {[%clk 0:00:36]} 0-1


[Site "https://www.chess.com"]

[Event "Titled Tuesday Blitz November 22 Early 2022"]
[White "Donchenko, Alexander"]
[Black "Kleiman, Jake"]
[WhiteFideId "24603295"]
[BlackFideId "2020041"]
[WhiteElo "2572"]
[BlackElo "2587"]
[Result "1-0"]
[Round "05"]
[TimeControl "180+1"]
[Date "2022.11.23"]
[WhiteClock "0:00:50"]
[BlackClock "0:00:12"]

1. Nf3 {[%clk 0:02:39]}  Nf6 {[%clk 0:02:58]} 2. g3 {[%clk 0:02:39]}  e6 {[%clk 0:02:58]} 3. Bg2 {[%clk 0:02:40]}  d5 {[%clk 0:02:59]} 4. O-O {[%clk 0:02:40]}  b5 {[%clk 0:02:59]} 5. a4 {[%clk 0:02:39]}  b4 {[%clk 0:02:59]} 6. c4 {[%clk 0:02:40]}  bxc3 {[%clk 0:02:58]} 7. bxc3 {[%clk 0:02:38]}  c5 {[%clk 0:02:57]} 8. d4 {[%clk 0:02:36]}  Be7 {[%clk 0:02:56]} 9. c4 {[%clk 0:02:36]}  O-O {[%clk 0:02:52]} 10. Na3 {[%clk 0:02:34]}  Bb7 {[%clk 0:02:39]} 11. Rb1 {[%clk 0:02:33]}  Bc6 {[%clk 0:02:38]} 12. Ne5 {[%clk 0:02:32]}  Be8 {[%clk 0:02:19]} 13. Bg5 {[%clk 0:02:21]}  cxd4 {[%clk 0:02:15]} 14. Nb5 {[%clk 0:02:18]}  Nc6 {[%clk 0:01:54]} 15. Nxc6 {[%clk 0:02:14]}  Bxc6 {[%clk 0:01:55]} 16. Nxd4 {[%clk 0:02:15]}  Be8 {[%clk 0:01:47]} 17. cxd5 {[%clk 0:02:07]}  Nxd5 {[%clk 0:01:44]} 18. Bxe7 {[%clk 0:02:07]}  Qxe7 {[%clk 0:01:45]} 19. Bxd5 {[%clk 0:02:03]}  exd5 {[%clk 0:01:45]} 20. Qb3 {[%clk 0:01:59]}  Qe5 {[%clk 0:01:39]} 21. e3 {[%clk 0:01:58]}  Bd7 {[%clk 0:01:39]} 22. Rfd1 {[%clk 0:01:55]}  Rab8 {[%clk 0:01:33]} 23. Qa2 {[%clk 0:01:52]}  Qe4 {[%clk 0:01:21]} 24. Nb5 {[%clk 0:01:40]}  Bh3 {[%clk 0:01:15]} 25. Qxd5 {[%clk 0:01:38]}  Qxa4 {[%clk 0:00:59]} 26. Nd4 {[%clk 0:01:34]}  g6 {[%clk 0:00:45]} 27. Rdc1 {[%clk 0:01:25]}  Rfd8 {[%clk 0:00:38]} 28. Rxb8 {[%clk 0:01:13]}  Rxb8 {[%clk 0:00:38]} 29. Nc6 {[%clk 0:01:13]}  Qa3 {[%clk 0:00:32]} 30. Rd1 {[%clk 0:01:06]}  Re8 {[%clk 0:00:26]} 31. Qd4 {[%clk 0:01:02]}  a6 {[%clk 0:00:21]} 32. Ra1 {[%clk 0:00:57]}  Qb3 {[%clk 0:00:18]} 33. Ne7+ {[%clk 0:00:50]}  Kf8 {[%clk 0:00:12]} 34. Nd5 {[%clk 0:00:50]} 1-0


[Site "https://www.chess.com"]

[Event "Titled Tuesday Blitz November 22 Early 2022"]
[White "Erdogdu, Mert"]
[Black "Kulkarni, Vikramaditya"]
[WhiteFideId "6301495"]
[BlackFideId "5009847"]
[WhiteElo "2413"]
[BlackElo "2273"]
[Result "1-0"]
[Round "05"]
[TimeControl "180+1"]
[Date "2022.11.23"]
[WhiteClock "0:01:16"]
[BlackClock "0:01:05"]

1. e4 {[%clk 0:03:00]}  e6 {[%clk 0:02:57]} 2. d4 {[%clk 0:03:00]}  d5 {[%clk 0:02:57]} 3. exd5 {[%clk 0:03:01]}  exd5 {[%clk 0:02:57]} 4. c4 {[%clk 0:03:02]}  Nf6 {[%clk 0:02:56]} 5. Nc3 {[%clk 0:03:02]}  Bb4 {[%clk 0:02:55]} 6. Bd3 {[%clk 0:03:03]}  O-O {[%clk 0:02:51]} 7. Ne2 {[%clk 0:03:03]}  Be6 {[%clk 0:02:49]} 8. cxd5 {[%clk 0:02:59]}  Nxd5 {[%clk 0:02:47]} 9. O-O {[%clk 0:03:00]}  Nc6 {[%clk 0:02:46]} 10. a3 {[%clk 0:02:43]}  Be7 {[%clk 0:02:43]} 11. Bc2 {[%clk 0:02:39]}  g6 {[%clk 0:02:36]} 12. Bh6 {[%clk 0:02:38]}  Re8 {[%clk 0:02:36]} 13. Qd2 {[%clk 0:02:37]}  Bf6 {[%clk 0:02:28]} 14. Rad1 {[%clk 0:02:34]}  Qd7 {[%clk 0:02:16]} 15. Ne4 {[%clk 0:02:23]}  Bg7 {[%clk 0:02:16]} 16. Nc5 {[%clk 0:02:15]}  Qe7 {[%clk 0:02:07]} 17. Bxg7 {[%clk 0:02:12]}  Kxg7 {[%clk 0:02:07]} 18. Nxb7 {[%clk 0:02:07]}  Rab8 {[%clk 0:02:06]} 19. Ba4 {[%clk 0:02:04]}  Bd7 {[%clk 0:01:58]} 20. Nc5 {[%clk 0:02:02]}  Nb6 {[%clk 0:01:36]} 21. Bb5 {[%clk 0:01:37]}  Nd5 {[%clk 0:01:21]} 22. a4 {[%clk 0:01:27]}  Rb6 {[%clk 0:01:19]} 23. Nc3 {[%clk 0:01:23]}  Ndb4 {[%clk 0:01:10]} 24. Nxd7 {[%clk 0:01:20]}  Qxd7 {[%clk 0:01:10]} 25. d5 {[%clk 0:01:20]}  a6 {[%clk 0:01:06]} 26. Bxc6 {[%clk 0:01:17]}  Nxc6 {[%clk 0:01:05]} 27. dxc6 {[%clk 0:01:16]} 1-0


[Site "https://www.chess.com"]

[Event "Titled Tuesday Blitz November 22 Early 2022"]
[White "Fedoseev, Vladimir"]
[Black "Aradhya, Garg"]
[WhiteFideId "24130737"]
[BlackFideId "25006746"]
[WhiteElo "2726"]
[BlackElo "2223"]
[Result "1-0"]
[Round "05"]
[TimeControl "180+1"]
[Date "2022.11.22"]
[WhiteClock "0:00:05"]
[BlackClock "0:00:07"]

1. e4 {[%clk 0:03:00]}  e5 {[%clk 0:02:59]} 2. Nf3 {[%clk 0:03:00]}  Nc6 {[%clk 0:03:00]} 3. Bb5 {[%clk 0:03:00]}  a6 {[%clk 0:03:00]} 4. Bxc6 {[%clk 0:03:00]}  dxc6 {[%clk 0:03:00]} 5. O-O {[%clk 0:03:00]}  Bd6 {[%clk 0:03:00]} 6. d4 {[%clk 0:02:59]}  exd4 {[%clk 0:03:00]} 7. Qxd4 {[%clk 0:02:59]}  f6 {[%clk 0:03:01]} 8. Be3 {[%clk 0:02:57]}  Ne7 {[%clk 0:03:00]} 9. Nbd2 {[%clk 0:02:57]}  Be6 {[%clk 0:02:59]} 10. Rfd1 {[%clk 0:02:52]}  Ng6 {[%clk 0:02:57]} 11. Nc4 {[%clk 0:02:50]}  Bxc4 {[%clk 0:02:57]} 12. Qxc4 {[%clk 0:02:50]}  Qe7 {[%clk 0:02:57]} 13. a4 {[%clk 0:02:38]}  O-O-O {[%clk 0:02:56]} 14. b4 {[%clk 0:02:24]}  Rhe8 {[%clk 0:02:28]} 15. b5 {[%clk 0:02:15]}  Qxe4 {[%clk 0:02:09]} 16. Rd4 {[%clk 0:02:13]}  Qe6 {[%clk 0:02:07]} 17. bxa6 {[%clk 0:02:11]}  Qxc4 {[%clk 0:02:07]} 18. axb7+ {[%clk 0:02:11]}  Kxb7 {[%clk 0:02:07]} 19. Rxc4 {[%clk 0:02:12]}  Ne7 {[%clk 0:02:03]} 20. Nd4 {[%clk 0:02:07]}  Ra8 {[%clk 0:02:02]} 21. g3 {[%clk 0:01:41]}  Ra6 {[%clk 0:01:59]} 22. Bd2 {[%clk 0:01:30]}  Be5 {[%clk 0:01:53]} 23. Rb1+ {[%clk 0:01:28]}  Kc8 {[%clk 0:01:53]} 24. Ne6 {[%clk 0:01:29]}  Nf5 {[%clk 0:01:44]} 25. Nc5 {[%clk 0:01:24]}  Ra8 {[%clk 0:01:45]} 26. Nd3 {[%clk 0:01:17]}  Bd6 {[%clk 0:01:39]} 27. a5 {[%clk 0:01:13]}  Re2 {[%clk 0:01:17]} 28. Rd1 {[%clk 0:01:05]}  Ra6 {[%clk 0:01:17]} 29. Kf1 {[%clk 0:00:59]}  Re6 {[%clk 0:01:15]} 30. Re1 {[%clk 0:00:53]}  Rxe1+ {[%clk 0:01:13]} 31. Kxe1 {[%clk 0:00:54]}  Ne7 {[%clk 0:01:10]} 32. Rh4 {[%clk 0:00:49]}  h6 {[%clk 0:01:06]} 33. Rg4 {[%clk 0:00:49]}  g5 {[%clk 0:01:06]} 34. Re4 {[%clk 0:00:47]}  Kd7 {[%clk 0:01:03]} 35. h4 {[%clk 0:00:38]}  c5 {[%clk 0:00:57]} 36. Rc4 {[%clk 0:00:32]}  Kc6 {[%clk 0:00:47]} 37. h5 {[%clk 0:00:20]}  Kb5 {[%clk 0:00:44]} 38. Nb2 {[%clk 0:00:19]}  Be5 {[%clk 0:00:37]} 39. Re4 {[%clk 0:00:19]}  Nf5 {[%clk 0:00:32]} 40. c4+ {[%clk 0:00:11]}  Kc6 {[%clk 0:00:31]} 41. Nd3 {[%clk 0:00:12]}  Nd6 {[%clk 0:00:20]} 42. Nxe5+ {[%clk 0:00:11]}  fxe5 {[%clk 0:00:21]} 43. Rxe5 {[%clk 0:00:09]}  Nxc4 {[%clk 0:00:21]} 44. Re6+ {[%clk 0:00:09]}  Kb5 {[%clk 0:00:22]} 45. Rxa6 {[%clk 0:00:05]}  Kxa6 {[%clk 0:00:22]} 46. Bc3 {[%clk 0:00:06]}  Nd6 {[%clk 0:00:13]} 47. Ke2 {[%clk 0:00:05]}  Nf5 {[%clk 0:00:11]} 48. Kd3 {[%clk 0:00:04]}  Kb5 {[%clk 0:00:11]} 49. Ke4 {[%clk 0:00:04]}  Nd6+ {[%clk 0:00:07]} 50. Kd5 {[%clk 0:00:04]}  Nb7 {[%clk 0:00:04]} 51. Bg7 {[%clk 0:00:04]}  c4 {[%clk 0:00:05]} 52. Bxh6 {[%clk 0:00:03]}  g4 {[%clk 0:00:05]} 53. Bf4 {[%clk 0:00:03]}  Nd8 {[%clk 0:00:05]} 54. h6 {[%clk 0:00:03]}  Nf7 {[%clk 0:00:05]} 55. h7 {[%clk 0:00:04]}  c3 {[%clk 0:00:06]} 56. Ke6 {[%clk 0:00:04]}  Nh8 {[%clk 0:00:06]} 57. Kf6 {[%clk 0:00:05]}  c2 {[%clk 0:00:07]} 58. Kg7 {[%clk 0:00:05]} 1-0


[Site "https://www.chess.com"]

[Event "Titled Tuesday Blitz November 22 Early 2022"]
[White "Fernandez Garcia, Gumersindo"]
[Black "Narayanan, Srinath"]
[WhiteFideId "24516740"]
[BlackFideId "5018420"]
[WhiteElo "2140"]
[BlackElo "2459"]
[Result "0-1"]
[Round "05"]
[TimeControl "180+1"]
[Date "2022.11.23"]
[WhiteClock "0:00:02"]
[BlackClock "0:00:08"]

1. e4 {[%clk 0:03:00]}  c6 {[%clk 0:02:58]} 2. c4 {[%clk 0:02:59]}  e5 {[%clk 0:02:56]} 3. Nf3 {[%clk 0:02:58]}  d6 {[%clk 0:02:57]} 4. d3 {[%clk 0:02:54]}  Nf6 {[%clk 0:02:57]} 5. g3 {[%clk 0:02:55]}  g6 {[%clk 0:02:56]} 6. Bg2 {[%clk 0:02:56]}  Bg7 {[%clk 0:02:57]} 7. O-O {[%clk 0:02:56]}  O-O {[%clk 0:02:58]} 8. Nc3 {[%clk 0:02:56]}  Re8 {[%clk 0:02:58]} 9. Bg5 {[%clk 0:02:55]}  h6 {[%clk 0:02:57]} 10. Be3 {[%clk 0:02:53]}  Bg4 {[%clk 0:02:57]} 11. h3 {[%clk 0:02:53]}  Bxf3 {[%clk 0:02:56]} 12. Qxf3 {[%clk 0:02:53]}  Na6 {[%clk 0:02:56]} 13. a3 {[%clk 0:02:51]}  Nc5 {[%clk 0:02:56]} 14. Qe2 {[%clk 0:02:49]}  Nfd7 {[%clk 0:02:52]} 15. b4 {[%clk 0:02:49]}  Nb3 {[%clk 0:02:51]} 16. Rae1 {[%clk 0:02:48]}  Nd4 {[%clk 0:02:51]} 17. Qd1 {[%clk 0:02:44]}  a5 {[%clk 0:02:51]} 18. b5 {[%clk 0:02:43]}  Nc5 {[%clk 0:02:50]} 19. Kh2 {[%clk 0:02:34]}  Kh7 {[%clk 0:02:49]} 20. f4 {[%clk 0:02:34]}  exf4 {[%clk 0:02:44]} 21. Bxf4 {[%clk 0:02:18]}  Nde6 {[%clk 0:02:33]} 22. Ne2 {[%clk 0:02:05]}  a4 {[%clk 0:02:20]} 23. Be3 {[%clk 0:02:04]}  Qd7 {[%clk 0:02:17]} 24. Nf4 {[%clk 0:02:00]}  Nxf4 {[%clk 0:02:11]} 25. Rxf4 {[%clk 0:02:01]}  cxb5 {[%clk 0:02:11]} 26. cxb5 {[%clk 0:02:01]}  Re7 {[%clk 0:02:03]} 27. Ref1 {[%clk 0:02:00]}  Ne6 {[%clk 0:01:51]} 28. R4f2 {[%clk 0:01:57]}  Nd4 {[%clk 0:01:51]} 29. b6 {[%clk 0:01:49]}  Rf8 {[%clk 0:01:39]} 30. Qb1 {[%clk 0:01:41]}  f5 {[%clk 0:01:34]} 31. Qb4 {[%clk 0:01:40]}  Nb3 {[%clk 0:01:29]} 32. exf5 {[%clk 0:01:29]}  Rxf5 {[%clk 0:01:21]} 33. Rxf5 {[%clk 0:01:27]}  gxf5 {[%clk 0:01:22]} 34. Qf4 {[%clk 0:01:17]}  Qe6 {[%clk 0:00:58]} 35. Bg1 {[%clk 0:01:12]}  Rf7 {[%clk 0:00:58]} 36. d4 {[%clk 0:00:58]}  d5 {[%clk 0:00:55]} 37. Bf2 {[%clk 0:00:53]}  Bf6 {[%clk 0:00:49]} 38. Re1 {[%clk 0:00:52]}  Qd7 {[%clk 0:00:45]} 39. Qf3 {[%clk 0:00:44]}  Bxd4 {[%clk 0:00:37]} 40. Bxd4 {[%clk 0:00:39]}  Nxd4 {[%clk 0:00:38]} 41. Qxd5 {[%clk 0:00:40]}  Qxd5 {[%clk 0:00:38]} 42. Bxd5 {[%clk 0:00:41]}  Rd7 {[%clk 0:00:39]} 43. Bg2 {[%clk 0:00:38]}  Nc2 {[%clk 0:00:31]} 44. Rc1 {[%clk 0:00:32]}  Rd2 {[%clk 0:00:21]} 45. Kh1 {[%clk 0:00:32]}  Nxa3 {[%clk 0:00:21]} 46. Bxb7 {[%clk 0:00:32]}  Rb2 {[%clk 0:00:20]} 47. Rc7+ {[%clk 0:00:30]}  Kg6 {[%clk 0:00:20]} 48. Rc6+ {[%clk 0:00:30]}  Kg7 {[%clk 0:00:21]} 49. Bc8 {[%clk 0:00:30]}  Nb1 {[%clk 0:00:19]} 50. Bxf5 {[%clk 0:00:29]}  a3 {[%clk 0:00:17]} 51. Rc7+ {[%clk 0:00:19]}  Kf6 {[%clk 0:00:17]} 52. Bh7 {[%clk 0:00:15]}  a2 {[%clk 0:00:16]} 53. Ra7 {[%clk 0:00:16]}  Nd2 {[%clk 0:00:16]} 54. b7 {[%clk 0:00:14]}  Nf3 {[%clk 0:00:08]} 55. Ra6+ {[%clk 0:00:08]}  Kg7 {[%clk 0:00:08]} 56. Bc2 {[%clk 0:00:02]}  Rxc2 {[%clk 0:00:08]} 0-1


[Site "https://www.chess.com"]